fUSD/lending_fUSD_20241225
["ID","MTS","AMOUNT","RATE_DAILY","PERIOD"]
[346598085,1735123833456,-500.0,9.643e-05,2]
[346598086,1735123833465,-500.0,9.643e-05,2]
[346598087,1735123833475,-2106.94,9.643e-05,2]
[346598088,1735123833485,-500.0,9.643e-05,2]
[346598089,1735123833494,-500.0,9.643e-05,2]
[346598090,1735123833504,-500.0,9.643e-05,2]
[346598091,1735123833514,-500.0,9.643e-05,2]
[346598092,1735123833523,-500.0,9.643e-05,2]
[346598093,1735123833533,-500.0,9.643e-05,2]
[346598094,1735123833542,-500.0,9.643e-05,2]
[346598095,1735123833552,-500.0,9.643e-05,2]
[346598096,1735123833561,-500.0,9.643e-05,2]
[346598097,1735123833570,-2120.8,9.643e-05,2]
[346598098,1735123833581,-500.0,9.643e-05,2]
[346598099,1735123833591,-500.0,9.643e-05,2]
[346598100,1735123833601,-500.0,9.643e-05,2]
[346598101,1735123833611,-500.0,9.643e-05,2]
[346598102,1735123833622,-8111.62,9.643e-05,2]
[346598103,1735123833633,-500.0,9.643e-05,2]
[346598104,1735123833644,-561.14,9.643e-05,2]
[346598105,1735123833654,-500.0,9.643e-05,2]
[346598106,1735123833666,-500.0,9.643e-05,2]
[346598107,1735123833677,-500.0,9.643e-05,2]
[346598108,1735123833686,-500.0,9.643e-05,2]
[346598109,1735123833696,-500.0,9.643e-05,2]
[346598110,1735123833706,-13374.8,9.643e-05,2]
[346598111,1735123833715,-500.0,9.643e-05,2]
[346598112,1735123833725,-500.0,9.643e-05,2]
[346598113,1735123833735,-500.0,9.643e-05,2]
[346598114,1735123833744,-500.0,9.643e-05,2]
[346598115,1735123833755,-500.0,9.643e-05,2]
[346598116,1735123833764,-500.0,9.643e-05,2]
[346598117,1735123833774,-500.0,9.643e-05,2]
[346598118,1735123833784,-895.0,9.643e-05,2]
[346598119,1735123833793,-500.0,9.643e-05,2]
[346598120,1735123833803,-500.0,9.643e-05,2]
[346598121,1735123833812,-500.0,9.643e-05,2]
[346598122,1735123833822,-500.0,9.643e-05,2]
[346598123,1735123833832,-500.0,9.643e-05,2]
[346598124,1735123833841,-500.0,9.643e-05,2]
[346598125,1735123833851,-500.0,9.643e-05,2]
[346598126,1735123833860,-500.0,9.643e-05,2]
[346598127,1735123833870,-1080.93,9.643e-05,2]
[346598128,1735123833880,-500.0,9.643e-05,2]
[346598129,1735123833890,-500.0,9.643e-05,2]
[346598130,1735123833899,-500.0,9.643e-05,2]
[346598131,1735123833908,-500.0,9.643e-05,2]
[346598132,1735123833917,-500.0,9.643e-05,2]
[346598133,1735123833928,-2415.95,9.643e-05,2]
[346598134,1735123833938,-1459.4,9.643e-05,2]
[346598135,1735123833947,-500.0,9.643e-05,2]
[346598136,1735123833957,-500.0,9.643e-05,2]
[346598137,1735123833966,-500.0,9.643e-05,2]
[346598138,1735123833975,-750.12,9.643e-05,2]
[346598139,1735123833985,-500.0,9.643e-05,2]
[346598140,1735123833995,-500.0,9.643e-05,2]
[346598141,1735123834005,-500.0,9.643e-05,2]
[346598142,1735123834014,-505.83612593,9.643e-05,2]
[346598143,1735123834024,-500.0,9.643e-05,2]
[346598144,1735123834034,-503.84,9.643e-05,2]
[346598145,1735123834045,-500.0,9.643e-05,2]
[346598146,1735123834055,-500.0,9.643e-05,2]
[346598147,1735123834064,-522.75382912,9.643e-05,2]
[346598148,1735123834074,-500.0,9.643e-05,2]
[346598149,1735123834083,-597.35,9.643e-05,2]
[346598150,1735123834092,-500.0,9.643e-05,2]
[346598151,1735123834102,-500.0,9.643e-05,2]
[346598152,1735123834111,-500.0,9.643e-05,2]
[346598153,1735123834121,-3125.5,9.643e-05,2]
[346598154,1735123834130,-500.0,9.643e-05,2]
[346598155,1735123834140,-9740.89,9.643e-05,2]
[346598156,1735123834149,-500.0,9.643e-05,2]
[346598157,1735123834159,-1791.37,9.643e-05,2]
[346598158,1735123834168,-500.0,9.643e-05,2]
[346598159,1735123834178,-544.59,9.643e-05,2]
[346598160,1735123834188,-500.0,9.643e-05,2]
[346598161,1735123834198,-541.98,9.643e-05,2]
[346598162,1735123834465,-1480.26,9.643e-05,2]
[346598163,1735123834475,-500.0,9.643e-05,2]
[346598164,1735123834485,-500.0,9.643e-05,2]
[346598165,1735123834494,-500.0,9.643e-05,2]
[346598166,1735123834504,-500.0,9.643e-05,2]
[346598167,1735123834513,-500.0,9.643e-05,2]
[346598168,1735123834522,-500.0,9.643e-05,2]
[346598169,1735123834532,-500.0,9.643e-05,2]
[346598170,1735123834541,-2382.39,9.643e-05,2]
[346598171,1735123834551,-500.0,9.643e-05,2]
[346598172,1735123834560,-500.0,9.643e-05,2]
[346598173,1735123834569,-545.41,9.643e-05,2]
[346598174,1735123834579,-500.0,9.643e-05,2]
[346598175,1735123834588,-3850.84,9.643e-05,2]
[346598176,1735123834598,-500.0,9.643e-05,2]
[346598177,1735123834607,-500.0,9.643e-05,2]
[346598178,1735123834616,-3099.01,9.643e-05,2]
[346598179,1735123834626,-500.0,9.643e-05,2]
[346598180,1735123834635,-500.0,9.643e-05,2]
[346598181,1735123834645,-1251.08,9.643e-05,2]
[346598182,1735123834654,-500.0,9.643e-05,2]
[346598183,1735123834665,-500.0,9.643e-05,2]
[346598184,1735123834675,-500.0,9.643e-05,2]
[346598185,1735123834684,-500.0,9.643e-05,2]
[346598186,1735123834694,-500.0,9.643e-05,2]
[346598187,1735123834703,-500.0,9.643e-05,2]
[346598188,1735123834713,-1210.33,9.643e-05,2]
[346598189,1735123834722,-1763.17,9.643e-05,2]
[346598190,1735123834731,-500.0,9.643e-05,2]
[346598191,1735123834740,-500.0,9.643e-05,2]
[346598192,1735123834750,-502.83256176,9.643e-05,2]
[346598193,1735123834759,-2069.22,9.643e-05,2]
[346598194,1735123834769,-500.0,9.643e-05,2]
[346598195,1735123834778,-500.0,9.643e-05,2]
[346598196,1735123834787,-564.98285108,9.643e-05,2]
[346598197,1735123834797,-3442.62,9.643e-05,2]
[346598198,1735123834806,-500.0,9.643e-05,2]
[346598199,1735123834815,-3116.27,9.643e-05,2]
[346598200,1735123834824,-500.0,9.643e-05,2]
[346598201,1735123834834,-500.0,9.643e-05,2]
[346598202,1735123834843,-500.0,9.643e-05,2]
[346598203,1735123834852,-500.0,9.643e-05,2]
[346598204,1735123834862,-1686.02,9.643e-05,2]
[346598205,1735123834871,-500.85172584,9.643e-05,2]
[346598206,1735123834880,-500.0,9.643e-05,2]
[346598207,1735123834890,-504.43,9.643e-05,2]
[346598208,1735123834901,-500.0,9.643e-05,2]
[346598209,1735123834910,-553.00193417,9.643e-05,2]
[346598210,1735123834919,-500.0,9.643e-05,2]
[346598211,1735123834929,-969.87,9.643e-05,2]
[346598212,1735123834940,-999.27,9.643e-05,2]
[346598213,1735123834949,-917.88,9.643e-05,2]
[346598214,1735123834958,-500.0,9.643e-05,2]
[346598215,1735123834967,-680.31,9.643e-05,2]
[346598216,1735123834978,-500.0,9.643e-05,2]
[346598217,1735123834987,-2615.45,9.643e-05,2]
[346598218,1735123834996,-500.0,9.643e-05,2]
[346598219,1735123835006,-500.0,9.643e-05,2]
[346598220,1735123835015,-500.0,9.643e-05,2]
[346598221,1735123835024,-500.0,9.643e-05,2]
[346598222,1735123835035,-500.0,9.643e-05,2]
[346598223,1735123835044,-500.0,9.643e-05,2]
[346598224,1735123835054,-1076.21,9.643e-05,2]
[346598225,1735123835063,-1287.66,9.643e-05,2]
[346598226,1735123835072,-518.82,9.643e-05,2]
[346598227,1735123835082,-1147.79,9.643e-05,2]
[346598228,1735123835091,-500.0,9.643e-05,2]
[346598229,1735123835100,-500.0,9.643e-05,2]
[346598230,1735123835110,-500.0,9.643e-05,2]
[346598231,1735123835120,-259.82514669,9.643e-05,2]
[346598232,1735123835129,-500.0,9.643e-05,2]
[346598233,1735123835138,-500.0,9.643e-05,2]
[346598234,1735123835147,-500.0,9.643e-05,2]
[346598235,1735123835156,-500.0,9.643e-05,2]
[346598236,1735123835165,-729.57,9.643e-05,2]
[346598237,1735123835175,-496.67920945,9.643e-05,2]
[346598238,1735123835184,-500.0,9.643e-05,2]
[346598239,1735123835194,-500.0,9.643e-05,2]
[346598240,1735123835204,-500.56112312,9.643e-05,2]
[346598241,1735123835214,-500.0,9.643e-05,2]
[346598242,1735123835223,-500.0,9.643e-05,2]
[346598243,1735123835233,-500.0,9.643e-05,2]
[346598244,1735123835243,-500.0,9.643e-05,2]
[346598245,1735123835252,-500.0,9.643e-05,2]
[346598246,1735123835261,-500.0,9.643e-05,2]
[346598247,1735123835270,-500.0,9.643e-05,2]
[346598248,1735123835280,-295.07715968,9.643e-05,2]
[346598249,1735123835291,-456.28556899,9.643e-05,2]
[346598250,1735123835300,-405.11070351,9.643e-05,2]
[346598251,1735123835310,-500.0,9.643e-05,2]
[346598252,1735123835319,-500.0,9.643e-05,2]
[346598253,1735123835330,-500.0,9.643e-05,2]
[346598254,1735123835340,-500.0,9.643e-05,2]
[346598255,1735123835349,-363.77235859,9.643e-05,2]
[346598256,1735123835360,-223.95367072,9.643e-05,2]
[346598257,1735123835371,-500.0,9.643e-05,2]
[346598258,1735123835380,-500.0,9.643e-05,2]
[346598259,1735123835389,-500.0,9.643e-05,2]
[346598260,1735123835399,-500.0,9.643e-05,2]
[346598261,1735123835408,-500.0,9.643e-05,2]
[346598262,1735123835419,-499.99999999,9.643e-05,2]
[346598263,1735123835429,-153.221202,9.644e-05,2]
[346598264,1735123835438,-1502.38284,9.644e-05,2]
[346598265,1735123835448,-164.676109,9.644e-05,2]
[346598266,1735123835458,-1533.855269,9.644e-05,2]
[346598267,1735123835467,-502.93680376,9.644e-05,2]
[346598268,1735123835476,-500.0,9.644e-05,2]
[346598269,1735123835485,-501.60551589,9.644e-05,2]
[346598270,1735123835494,-501.63338851,9.644e-05,2]
[346598271,1735123835503,-500.0,9.644e-05,2]
[346598272,1735123835512,-500.0,9.644e-05,2]
[346598273,1735123835522,-500.77853177,9.644e-05,2]
[346598274,1735123835530,-527.90643545,9.644e-05,2]
[346598275,1735123835539,-500.0,9.644e-05,2]
[346598276,1735123835548,-500.0,9.644e-05,2]
[346598277,1735123835557,-501.61129221,9.644e-05,2]
[346598278,1735123835566,-500.76770261,9.644e-05,2]
[346598279,1735123835575,-500.0,9.644e-05,2]
[346598280,1735123835584,-501.61545183,9.644e-05,2]
[346598281,1735123835593,-500.0,9.644e-05,2]
[346598282,1735123835602,-500.0,9.644e-05,2]
[346598283,1735123835611,-501.07701794,9.644e-05,2]
[346598284,1735123835620,-501.38588844,9.644e-05,2]
[346598285,1735123835628,-500.0,9.644e-05,2]
[346598286,1735123835638,-500.0,9.644e-05,2]
[346598287,1735123835647,-500.0,9.644e-05,2]
[346598288,1735123835656,-177.1792,9.644e-05,2]
[346598289,1735123835665,-500.0,9.644e-05,2]
[346598290,1735123835676,-676.89,9.644e-05,2]
[346598291,1735123835685,-500.67242218,9.644e-05,2]
[346598292,1735123835694,-716.47,9.644e-05,2]
[346598293,1735123835703,-500.0,9.644e-05,2]
[346598294,1735123835712,-154.238122,9.644e-05,2]
[346598295,1735123835723,-500.0,9.644e-05,2]
[346598296,1735123835732,-500.0,9.644e-05,2]
[346598297,1735123835741,-500.0,9.644e-05,2]
[346598298,1735123835750,-500.0,9.644e-05,2]
[346598299,1735123835760,-551.85,9.644e-05,2]
[346598300,1735123835769,-500.0,9.644e-05,2]
[346598301,1735123835779,-500.81498129,9.644e-05,2]
[346598302,1735123835788,-501.01802147,9.644e-05,2]
[346598303,1735123835797,-500.20590493,9.644e-05,2]
[346598304,1735123835807,-500.0,9.644e-05,2]
[346598305,1735123835816,-500.81395624,9.644e-05,2]
[346598306,1735123835826,-1052.78,9.644e-05,2]
[346598307,1735123835835,-500.0,9.644e-05,2]
[346598308,1735123835845,-500.0,9.644e-05,2]
[346598309,1735123835855,-500.0,9.644e-05,2]
[346598310,1735123835865,-500.0,9.644e-05,2]
[346598311,1735123835874,-500.0,9.644e-05,2]
[346598312,1735123835884,-732.02,9.644e-05,2]
[346598313,1735123835893,-500.0,9.644e-05,2]
[346598314,1735123835902,-384.47914371,9.644e-05,2]
[346598315,1735123835912,-500.0,9.644e-05,2]
[346598316,1735123835924,-500.70904462,9.644e-05,2]
[346598317,1735123835933,-805.02,9.644e-05,2]
[346598318,1735123835942,-500.0,9.644e-05,2]
[346598319,1735123835951,-500.37006853,9.644e-05,2]
[346598320,1735123835960,-500.0,9.644e-05,2]
[346598321,1735123835970,-500.53739117,9.644e-05,2]
[346598322,1735123835979,-697.15,9.644e-05,2]
[346598323,1735123835989,-500.0,9.644e-05,2]
[346598324,1735123835998,-697.0,9.644e-05,2]
[346598325,1735123836007,-500.0,9.644e-05,2]
[346598326,1735123836017,-500.8438386,9.644e-05,2]
[346598327,1735123836027,-504.28313434,9.644e-05,2]
[346598328,1735123836036,-500.0,9.644e-05,2]
[346598329,1735123836046,-539.3,9.644e-05,2]
[346598330,1735123836055,-168.021581,9.644e-05,2]
[346598331,1735123836065,-500.69313228,9.644e-05,2]
[346598332,1735123836074,-500.70347308,9.644e-05,2]
[346598333,1735123836084,-500.0,9.644e-05,2]
[346598334,1735123836093,-500.0,9.644e-05,2]
[346598335,1735123836102,-500.0,9.644e-05,2]
[346598336,1735123836111,-500.67451684,9.644e-05,2]
[346598337,1735123836121,-500.0,9.644e-05,2]
[346598338,1735123836130,-236.49440271,9.644e-05,2]
[346598339,1735123836139,-500.0,9.644e-05,2]
[346598340,1735123836148,-500.85964755,9.644e-05,2]
[346598341,1735123836158,-500.0,9.644e-05,2]
[346598342,1735123836167,-500.0,9.644e-05,2]
[346598343,1735123836177,-500.0,9.644e-05,2]
[346598344,1735123836186,-500.0,9.644e-05,2]
[346598345,1735123836196,-500.0,9.644e-05,2]
[346598346,1735123836205,-500.0,9.644e-05,2]
[346598347,1735123836215,-500.0,9.644e-05,2]
[346598348,1735123836224,-500.0,9.644e-05,2]
[346598349,1735123836233,-500.35838619,9.644e-05,2]
[346598350,1735123836242,-500.54420064,9.644e-05,2]
[346598351,1735123836251,-500.0,9.644e-05,2]
[346598352,1735123836260,-500.0,9.644e-05,2]
[346598353,1735123836269,-500.0,9.644e-05,2]
[346598354,1735123836279,-745.04,9.644e-05,2]
[346598355,1735123836288,-500.53476551,9.644e-05,2]
[346598356,1735123836302,-500.0,9.644e-05,2]
[346598357,1735123836311,-500.0,9.644e-05,2]
[346598358,1735123836320,-500.0,9.644e-05,2]
[346598359,1735123836329,-501.05648539,9.644e-05,2]
[346598360,1735123836340,-500.0,9.644e-05,2]
[346598361,1735123836348,-500.34618715,9.644e-05,2]
[346598362,1735123836358,-500.0,9.644e-05,2]
[346598363,1735123836368,-500.0,9.644e-05,2]
[346598364,1735123836378,-500.0,9.644e-05,2]
[346598365,1735123836388,-500.0,9.644e-05,2]
[346598366,1735123836397,-500.0,9.644e-05,2]
[346598367,1735123836406,-500.0,9.644e-05,2]
[346598368,1735123836416,-309.47398417,9.644e-05,2]
[346598369,1735123836427,-500.0,9.644e-05,2]
[346598370,1735123836437,-500.0,9.644e-05,2]
[346598371,1735123836446,-155.987331,9.644e-05,2]
[346598372,1735123836456,-903.2,9.644e-05,2]
[346598373,1735123836465,-397.30183942,9.644e-05,2]
[346598374,1735123836474,-721.38,9.644e-05,2]
[346598375,1735123836483,-500.0,9.644e-05,2]
[346598376,1735123836492,-500.0,9.644e-05,2]
[346598377,1735123836502,-500.0,9.644e-05,2]
[346598378,1735123836511,-500.0,9.644e-05,2]
[346598379,1735123836520,-723.99,9.644e-05,2]
[346598380,1735123836530,-500.0,9.644e-05,2]
[346598381,1735123836539,-500.0,9.644e-05,2]
[346598382,1735123836548,-500.0,9.644e-05,2]
[346598383,1735123836557,-502.23350107,9.644e-05,2]
[346598384,1735123836567,-500.0,9.644e-05,2]
[346598385,1735123836576,-500.0,9.644e-05,2]
[346598386,1735123836586,-500.0,9.644e-05,2]
[346598387,1735123836595,-501.0210632,9.644e-05,2]
[346598388,1735123836604,-499.99887532,9.644e-05,2]
[346598389,1735123836614,-501.06899543,9.644e-05,2]
[346598390,1735123836623,-705.13,9.644e-05,2]
[346598391,1735123836632,-500.0,9.644e-05,2]
[346598392,1735123836642,-500.0,9.644e-05,2]
[346598393,1735123836651,-500.2656659,9.644e-05,2]
[346598394,1735123836661,-500.0,9.644e-05,2]
[346598395,1735123836670,-500.0,9.644e-05,2]
[346598396,1735123836680,-500.0,9.644e-05,2]
[346598397,1735123836690,-500.0,9.644e-05,2]
[346598398,1735123836700,-500.0,9.644e-05,2]
[346598399,1735123836709,-500.28726127,9.644e-05,2]
[346598400,1735123836719,-500.0,9.644e-05,2]
[346598401,1735123836728,-500.0,9.644e-05,2]
[346598402,1735123836738,-500.47858745,9.644e-05,2]
[346598403,1735123836748,-253.1045764,9.644e-05,2]
[346598404,1735123836757,-500.0,9.644e-05,2]
[346598405,1735123836767,-501.11223173,9.644e-05,2]
[346598406,1735123836776,-500.0,9.644e-05,2]
[346598407,1735123836786,-500.0,9.644e-05,2]
[346598408,1735123836795,-500.0,9.644e-05,2]
[346598409,1735123836804,-500.51116151,9.644e-05,2]
[346598410,1735123836814,-500.0,9.644e-05,2]
[346598411,1735123836823,-500.0,9.644e-05,2]
[346598412,1735123836833,-500.66212435,9.644e-05,2]
[346598413,1735123836842,-500.0,9.644e-05,2]
[346598414,1735123836851,-500.0,9.644e-05,2]
[346598415,1735123836861,-500.0,9.644e-05,2]
[346598416,1735123836870,-504.10201399,9.644e-05,2]
[346598417,1735123836880,-502.64445117,9.644e-05,2]
[346598418,1735123836890,-500.0,9.644e-05,2]
[346598419,1735123836899,-500.0,9.644e-05,2]
[346598420,1735123836908,-500.33010061,9.644e-05,2]
[346598421,1735123836917,-500.0,9.644e-05,2]
[346598422,1735123836929,-578.83341996,9.644e-05,2]
[346598423,1735123836938,-758.06653219,9.644e-05,2]
[346598424,1735123836997,-373.91346781,9.644e-05,2]
[346598425,1735123837006,-366.39232073,9.644e-05,2]
[346598426,1735123837018,-133.60767927,9.644e-05,2]
[346598427,1735123837028,-500.0,9.644e-05,2]
[346598428,1735123837037,-500.46026021,9.644e-05,2]
[346598429,1735123837046,-500.0,9.644e-05,2]
[346598430,1735123837055,-725.62,9.644e-05,2]
[346598431,1735123837064,-500.0,9.644e-05,2]
[346598432,1735123837074,-500.0,9.644e-05,2]
[346598433,1735123837083,-549.41,9.644e-05,2]
[346598434,1735123837092,-500.0,9.644e-05,2]
[346598435,1735123837100,-500.0,9.644e-05,2]
[346598436,1735123837110,-102.91694399,9.644e-05,2]
[346598437,1735123837121,-399.09232074,9.644e-05,2]
[346598438,1735123837130,-525.72,9.644e-05,2]
[346598439,1735123837141,-500.28481576,9.644e-05,2]
[346598440,1735123837151,-500.0,9.644e-05,2]
[346598441,1735123837160,-500.0,9.644e-05,2]
[346598442,1735123837169,-500.0,9.644e-05,2]
[346598443,1735123837180,-500.0,9.644e-05,2]
[346598444,1735123837189,-500.0,9.644e-05,2]
[346598445,1735123837199,-500.0,9.644e-05,2]
[346598446,1735123837208,-500.30319185,9.644e-05,2]
[346598447,1735123837217,-25.09967165,9.644e-05,2]
[346598448,1735123837242,-474.90032835,9.644e-05,2]
[346598449,1735123837251,-500.0,9.644e-05,2]
[346598450,1735123837261,-500.0,9.644e-05,2]
[346598451,1735123837271,-500.0,9.644e-05,2]
[346598452,1735123837281,-730.72,9.644e-05,2]
[346598453,1735123837290,-500.0,9.644e-05,2]
[346598454,1735123837303,-1070.9,9.644e-05,2]
[346598455,1735123837313,-500.44355271,9.644e-05,2]
[346598456,1735123837322,-502.4776877,9.644e-05,2]
[346598457,1735123837331,-500.0,9.644e-05,2]
[346598458,1735123837340,-500.0,9.644e-05,2]
[346598459,1735123837349,-500.0,9.644e-05,2]
[346598460,1735123837359,-562.56,9.644e-05,2]
[346598461,1735123837368,-500.0,9.644e-05,2]
[346598462,1735123837377,-500.31810694,9.644e-05,2]
[346598463,1735123837388,-498.95569871,9.644e-05,2]
[346598464,1735123837397,-500.0,9.644e-05,2]
[346598465,1735123837407,-500.0,9.644e-05,2]
[346598466,1735123837416,-500.0,9.644e-05,2]
[346598467,1735123837427,-1292.9,9.644e-05,2]
[346598468,1735123837437,-500.30984703,9.644e-05,2]
[346598469,1735123837447,-500.0,9.644e-05,2]
[346598470,1735123837456,-500.0,9.644e-05,2]
[346598471,1735123837465,-500.0,9.644e-05,2]
[346598472,1735123837475,-500.0,9.644e-05,2]
[346598473,1735123837484,-500.0,9.644e-05,2]
[346598474,1735123837494,-500.0,9.644e-05,2]
[346598475,1735123837503,-564.45,9.644e-05,2]
[346598476,1735123837513,-500.0,9.644e-05,2]
[346598477,1735123837521,-524.66,9.644e-05,2]
[346598478,1735123837531,-501.13115863,9.644e-05,2]
[346598479,1735123837541,-500.0,9.644e-05,2]
[346598480,1735123837550,-500.0,9.644e-05,2]
[346598481,1735123837559,-384.52185014,9.644e-05,2]
[346598482,1735123837568,-500.24056084,9.644e-05,2]
[346598483,1735123837577,-500.0,9.644e-05,2]
[346598484,1735123837587,-96.11120895,9.644e-05,2]
[346598485,1735123837600,-403.88879105,9.644e-05,2]
[346598486,1735123837609,-1241.48,9.644e-05,2]
[346598487,1735123837619,-304.63120895,9.644e-05,2]
[346598488,1735123837630,-218.95383508,9.644e-05,2]
[346598489,1735123837640,-500.0,9.644e-05,2]
[346598490,1735123837649,-500.0,9.644e-05,2]
[346598491,1735123837658,-356.7917143,9.644e-05,2]
[346598492,1735123837671,-143.90102946,9.644e-05,2]
[346598493,1735123837681,-441.13897054,9.644e-05,2]
[346598496,1735123838071,-58.86102946,9.644e-05,2]
[346598497,1735123838092,-500.0,9.644e-05,2]
[346598498,1735123838112,-500.0,9.644e-05,2]
[346598499,1735123838133,-926.32,9.644e-05,2]
[346598500,1735123838152,-500.0,9.644e-05,2]
[346598501,1735123838174,-500.0,9.644e-05,2]
[346598502,1735123838194,-500.0,9.644e-05,2]
[346598503,1735123838214,-500.0,9.644e-05,2]
[346598504,1735123838235,-685.43,9.644e-05,2]
[346598505,1735123838256,-571.28538616,9.644e-05,2]
[346598506,1735123838277,-500.0,9.644e-05,2]
[346598507,1735123838300,-500.0,9.644e-05,2]
[346598530,1735123838546,-500.0,9.644e-05,2]
[346598534,1735123838567,-500.25842308,9.644e-05,2]
[346598537,1735123838588,-500.0,9.644e-05,2]
[346598540,1735123838608,-401.80997908,9.644e-05,2]
[346598544,1735123838631,-500.0,9.644e-05,2]
[346598547,1735123838651,-500.0,9.644e-05,2]
[346598550,1735123838674,-672.86,9.644e-05,2]
[346598553,1735123838694,-500.0,9.644e-05,2]
[346598557,1735123838715,-500.0,9.644e-05,2]
[346598560,1735123838736,-500.0,9.644e-05,2]
[346598563,1735123838756,-500.38547183,9.644e-05,2]
[346598566,1735123838776,-500.0,9.644e-05,2]
[346598569,1735123838796,-626.83,9.644e-05,2]
[346598572,1735123838816,-500.0,9.644e-05,2]
[346598576,1735123838837,-1345.93,9.644e-05,2]
[346598579,1735123838857,-500.0,9.644e-05,2]
[346598582,1735123838877,-500.0,9.644e-05,2]
[346598585,1735123838898,-500.0,9.644e-05,2]
[346598588,1735123838919,-1089.7,9.644e-05,2]
[346598592,1735123838942,-500.0,9.644e-05,2]
[346598595,1735123838964,-500.0,9.644e-05,2]
[346598598,1735123838986,-500.1481022,9.644e-05,2]
[346598601,1735123839007,-674.18,9.644e-05,2]
[346598604,1735123839028,-7883.29,9.644e-05,2]
[346598608,1735123839049,-500.0,9.644e-05,2]
[346598611,1735123839070,-500.20836682,9.644e-05,2]
[346598614,1735123839091,-716.6,9.644e-05,2]
[346598617,1735123839110,-500.0,9.644e-05,2]
[346598620,1735123839131,-553.00543158,9.644e-05,2]
[346598623,1735123839152,-500.0,9.644e-05,2]
[346598627,1735123839173,-1801.55,9.644e-05,2]
[346598630,1735123839194,-2631.1,9.644e-05,2]
[346598633,1735123839215,-1161.29,9.644e-05,2]
[346598636,1735123839236,-1171.55,9.644e-05,2]
[346598639,1735123839258,-500.0,9.644e-05,2]
[346598643,1735123839278,-500.0,9.644e-05,2]
[346598646,1735123839301,-500.0,9.644e-05,2]
[346598649,1735123839321,-2848.91,9.644e-05,2]
[346598652,1735123839342,-1215.48,9.644e-05,2]
[346598655,1735123839363,-801.16,9.644e-05,2]
[346598658,1735123839384,-1150.96,9.644e-05,2]
[346598661,1735123839402,-500.0,9.644e-05,2]
[346598665,1735123839423,-2469.89,9.644e-05,2]
[346598668,1735123839444,-500.0,9.644e-05,2]
[346598671,1735123839467,-2475.68,9.644e-05,2]
[346598674,1735123839488,-500.0,9.644e-05,2]
[346598678,1735123839508,-500.0,9.644e-05,2]
[346598681,1735123839528,-500.0,9.644e-05,2]
[346598684,1735123839548,-1114.57,9.644e-05,2]
[346598687,1735123839569,-1787.54,9.644e-05,2]
[346598688,1735123839589,-500.0,9.644e-05,2]
[346598689,1735123839609,-500.0,9.644e-05,2]
[346598690,1735123839629,-500.0,9.644e-05,2]
[346598691,1735123839650,-500.0,9.644e-05,2]
[346598692,1735123839671,-2092.13,9.644e-05,2]
[346598693,1735123839693,-500.0,9.644e-05,2]
[346598694,1735123839713,-500.0,9.644e-05,2]
[346598695,1735123839734,-2238.42,9.644e-05,2]
[346598696,1735123839756,-847.89,9.644e-05,2]
[346598698,1735123839777,-500.0,9.644e-05,2]
[346598701,1735123839797,-500.0,9.644e-05,2]
[346598704,1735123839818,-3139.07,9.644e-05,2]
[346598708,1735123839839,-697.89,9.644e-05,2]
[346598711,1735123839860,-1511.98,9.644e-05,2]
[346598714,1735123839881,-500.71733567,9.644e-05,2]
[346598717,1735123839902,-500.74961406,9.644e-05,2]
[346598720,1735123839924,-15765.17,9.644e-05,2]
[346598724,1735123839946,-15765.17,9.644e-05,2]
[346598726,1735123839967,-500.44531567,9.644e-05,2]
[346598730,1735123839988,-500.0,9.644e-05,2]
[346598733,1735123840009,-3688.36,9.644e-05,2]
[346598736,1735123840030,-500.0,9.644e-05,2]
[346598739,1735123840054,-1406.27,9.644e-05,2]
[346598742,1735123840075,-500.0,9.644e-05,2]
[346598745,1735123840097,-2495.17,9.644e-05,2]
[346598749,1735123840119,-849.55,9.644e-05,2]
[346598751,1735123840141,-500.0,9.644e-05,2]
[346598752,1735123840164,-6914.7,9.644e-05,2]
[346598753,1735123840187,-506.70685251,9.644e-05,2]